Cogmind - Beta 11.1 *** ADVENTURER MODE // 2022.08.01 @ 20:39:36 Player: TMPS Result: Destroyed by as-42611 with Assembled Heavy Rifle Performance ------------- Evolutions (0) 0 Regions Visited (4) 800 Robots Destroyed (34) 170 Value Destroyed (626) 626 Prototype IDs (26) 520 Alien Tech Used (0) 0 Bonus (300) 300 TOTAL SCORE: 2416 Bonus ------- Aligned with FarCom 300 Cogmind --------- Core Integrity 0/250 Matter 247/300 Energy 265/265 System Corruption 0% Temperature Cool (26) Movement Walking (90) Location -9/Mines Parts ------- > --- POWER (1) -------- Improved Ion Engine > --- PROPULSION (2) --- Potential Leg Potential Leg > --- UTILITY (2) ------ Heat Sink Signal Interpreter > --- WEAPON (2) ------- Particle Gun Light Assault Rifle > --- INVENTORY (5) ---- Improved Ion Engine Large Battery (200) Large Battery (200) Large Matter Pod (150) Large Matter Pod (150) Peak State ------------ > --- POWER ------------ Improved Ion Engine > --- PROPULSION ------- Potential Leg Potential Leg > --- UTILITY ---------- Heat Sink Signal Interpreter > --- WEAPON ----------- Particle Gun Grenade Launcher > --- INVENTORY -------- Improved Ion Engine Large Battery Large Battery Large Matter Pod Large Matter Pod [Rating: 27] Favorites ----------- Power Improved Ion Engine Engine Improved Ion Engine Propulsion Wheel Leg Potential Leg Wheel Wheel Hover Unit Hover Unit Utility Signal Interpreter Device Heat Sink Storage Small Storage Unit Processor Signal Interpreter Weapon Particle Gun Energy Gun Particle Gun Ballistic Gun Heavy Assault Rifle Launcher Grenade Launcher Build | -11 -10 -10 -10 -9 ------- Run | Scr Mat Min Exi Min Slots Evolved . | . . . . . Power . | . . . . . Propulsion . | . . . . . Utility . | . . . . . Weapon . | . . . . . Parts Attached 37 | 10 18 5 3 1 Power 5 | 2 3 . . . Engine 5 | 2 3 . . . Core . | . . . . . Reactor . | . . . . . Propulsion 16 | 4 5 4 3 . Treads . | . . . . . Leg 4 | . . 2 2 . Wheel 9 | 4 2 2 1 . Hover 3 | . 3 . . . Flight . | . . . . . Utility 7 | 2 5 . . . Device 4 | 1 3 . . . Storage 1 | 1 . . . . Processor 2 | . 2 . . . Hackware . | . . . . . Protection . | . . . . . Artifact . | . . . . . Weapon 9 | 2 5 1 . 1 Energy Gun 5 | 2 3 . . . Energy Cannon . | . . . . . Ballistic Gun 3 | . 2 . . 1 Ballistic Cannon . | . . . . . Launcher 1 | . . 1 . . Special Weapon . | . . . . . Impact Weapon . | . . . . . Slashing Weapon . | . . . . . Piercing Weapon . | . . . . . Special Melee Weapon . | . . . . . Unidentified Prototypes . | . . . . . Parts Lost 2 | . 2 . . . Power 1 | . 1 . . . Propulsion . | . . . . . Utility 1 | . 1 . . . Weapon . | . . . . . Highest Loss Streak 1 | . 1 . . . To Critical Strikes . | . . . . . Average Slot Usage (%) 98 | . 96 99 99 100 Engine 13 | . 13 14 14 14 Leg 5 | . . 6 6 28 Wheel 21 | . 23 21 21 . Hover 1 | . 4 . . . Device 13 | . 11 14 14 14 Processor 13 | . 12 14 14 14 Energy Gun 16 | . 22 16 14 14 Ballistic Gun 1 | . 5 . . . Launcher 9 | . . 11 14 14 Naked Turns . | . . . . . Heaviest Build 14 | 13 14 14 14 14 Greatest Support 60 | 32 20 20 60 60 Greatest Overweight (x) 1 | . . 1 . . Average Overweight (x) . | . . . . . Largest Inventory Capacity 8 | 8 8 5 5 5 Average Capacity 5 | 6 5 5 5 5 Most Carried 5 | 2 5 5 5 5 Average Carried 4 | . 3 5 4 5 Final Capacity 8 | 8 5 5 5 5 Final Carried 5 | 2 5 5 5 5 Class Distribution -------------------- 80% | Scavenger-Mutant 19% | Mutant Dominant Class ---------------- Scavenger-Mutant | -10/Materials Scavenger-Mutant | -10/Mines Scavenger-Mutant | -10/Exiles Mutant | -9/Mines Resources | -11 -10 -10 -10 -9 ----------- Run | Scr Mat Min Exi Min Matter Collected 957 | 300 489 140 . 28 Remotely 112 | 64 48 . . . Salvage Created 943 | 189 506 227 . 21 Parts 69 | 13 35 17 . 4 Haulers Intercepted . | . . . . . Recyclers Shooed 2 | 1 1 . . . Parts Field Recycled . | . . . . . Retrieved Matter . | . . . . . Parts Self-Destructed . | . . . . . Prevented . | . . . . . Kills | -11 -10 -10 -10 -9 ------- Run | Scr Mat Min Exi Min Combat Hostiles Destroyed 23 | . 10 7 . 6 Guns 13 | . 10 2 . 1 AOE 10 | . . 5 . 5 Classes Destroyed 8 | 3 3 1 . 1 Worker 2 | 1 . 1 . . Builder 2 | . . 2 . . Tunneler 4 | 3 . 1 . . Recycler 2 | 1 1 . . . Watcher 3 | . 3 . . . Swarmer 10 | . 3 3 . 4 Grunt 11 | . 7 4 . . Assembled 2 | . . . . 2 Best Kill Streak 5 | 2 5 4 . 4 Combat Bots Only 5 | . 5 3 . 4 Max Kills in Single Turn 2 | 1 2 2 . 2 Gunslinging 1 | . 1 . . . Exploded 2 | . . 2 . 2 Melee . | . . . . . Uniques/NPCs Destroyed . | . . . . . Combat | -11 -10 -10 -10 -9 -------- Run | Scr Mat Min Exi Min Damage Taken 721 | . 376 191 . 154 Core 251 | . 136 69 . 46 Absorbed by Shields . | . . . . . Core Remaining (%) 100 | 100 . . . . Volleys Fired 81 | 16 40 18 . 7 Largest 2 | 2 2 2 . 2 Hottest 115 | 90 115 105 . 95 Shots Fired 126 | 21 61 32 . 12 Gun 114 | 21 61 24 . 8 Cannon . | . . . . . Launcher 12 | . . 8 . 4 Special . | . . . . . Kinetic 9 | . 8 . . 1 Thermal 105 | 21 53 24 . 7 Explosive 12 | . . 8 . 4 Electromagnetic . | . . . . . Robot Hit Streak 21 | 10 21 14 . 7 Robot Miss Streak 3 | 2 2 3 . 1 Penetration Max . | . . . . . Secondary Targets 3 | . 3 . . . Max Gunslinging Chain 1 | . 1 . . . Shots Hit Robots 96 | 16 49 23 . 8 Core Hits 56 | 6 23 16 . 11 Critical Kills . | . . . . . Critical Parts Destroyed . | . . . . . Critical Strikes 6 | 2 3 1 . . Burn 6 | 2 3 1 . . Melee Attacks . | . . . . . Impact . | . . . . . Slashing . | . . . . . Piercing . | . . . . . Sneak Attacks . | . . . . . Combat Hostiles . | . . . . . Follow-up Attacks . | . . . . . Damage Inflicted 1780 | 179 646 597 . 358 Guns 1145 | 179 646 255 . 65 Cannons . | . . . . . Explosions 635 | . . 342 . 293 Melee . | . . . . . Ramming . | . . . . . Kinetic 127 | . 119 . . 8 Thermal 1018 | 179 527 255 . 57 Explosive 635 | . . 342 . 293 Electromagnetic . | . . . . . Impact . | . . . . . Slashing . | . . . . . Piercing . | . . . . . Highest Corruption . | . . . . . Average Corruption . | . . . . . Corruption Purged . | . . . . . Corruption Blocked . | . . . . . Overload Shots . | . . . . . Overflow Damage 38 | . . 32 . 6 Projectiles . | . . . . . Explosions 38 | . . 32 . 6 Melee . | . . . . . Knockbacks . | . . . . . Impact . | . . . . . Kinetic . | . . . . . Secondary . | . . . . . Self-Inflicted Damage 50 | . . 33 . 17 Shots 3 | . . 2 . 1 Rammed . | . . . . . Targets Rammed . | . . . . . Kicked . | . . . . . Crushed . | . . . . . Highest Temperature 340 | 60 340 96 . 32 Average Temperature 107 | 21 169 31 . 8 Received Heat Transfer 388 | . 231 117 . 40 Effects 8 | . 8 . . . Shutdowns 1 | . 1 . . . Energy Bleed 1 | . 1 . . . Interference 4 | . 4 . . . Short Circuit 1 | . 1 . . . Damage (minor) 1 | . 1 . . . Siege Activations . | . . . . . Robots Corrupted . | . . . . . Combat Hostiles . | . . . . . Parts Fried . | . . . . . Impact Corruptions . | . . . . . Robots Melted . | . . . . . Combat Hostiles . | . . . . . Parts Melted 5 | 1 3 1 . . Heat Transferred 3020 | 584 1596 692 . 148 Parts Sabotaged . | . . . . . Parts Stolen . | . . . . . Parts Stripped . | . . . . . Power Chain Reactions . | . . . . . Missiles Intercepted . | . . . . . Alert | -11 -10 -10 -10 -9 ------- Run | Scr Mat Min Exi Min Peak Influence 309 | 25 309 280 . 165 Initial 42 | . 13 42 . . Average 133 | 10 124 162 . 138 Maximum Alert Level 1 | . 1 1 . . Low Security (%) 79 | 100 96 61 . 100 Level 1 20 | . 3 38 . . Level 2 . | . . . . . Level 3 . | . . . . . Level 4 . | . . . . . Level 5 . | . . . . . High Security . | . . . . . Max Security . | . . . . . Squads Dispatched . | . . . . . Investigation . | . . . . . Extermination . | . . . . . Reinforcement . | . . . . . Assault . | . . . . . Garrison . | . . . . . Intercept . | . . . . . Searches Triggered . | . . . . . Construction Impeded . | . . . . . Haulers Reinforced . | . . . . . Active Scanning Responses . | . . . . . Cargo Convoy Interrupts . | . . . . . Stealth | -11 -10 -10 -10 -9 --------- Run | Scr Mat Min Exi Min Distress Signals 1 | . 1 . . . Communications Jammed . | . . . . . Distress Signals . | . . . . . Times Spotted 25 | . 13 7 . 5 Peak Tracking Total 3 | . 3 3 . 3 Tactical Retreats . | . . . . . Traps | -11 -10 -10 -10 -9 ------- Run | Scr Mat Min Exi Min Traps Triggered . | . . . . . Indirectly . | . . . . . Trap Hack Attempts . | . . . . . Triggered . | . . . . . Disarmed . | . . . . . Reprogrammed . | . . . . . Reused . | . . . . . Traps Extracted . | . . . . . Installed . | . . . . . Triggered . | . . . . . Machines | -11 -10 -10 -10 -9 ---------- Run | Scr Mat Min Exi Min Machines Disabled . | . . . . . Max in Single Turn . | . . . . . Machines Sabotaged . | . . . . . Garrisons Compromised . | . . . . . Overloaded Fab Kills . | . . . . . Hacking | -11 -10 -10 -10 -9 --------- Run | Scr Mat Min Exi Min Machines Accessed 10 | . 5 . 5 . Terminals 3 | . 3 . . . Fabricators . | . . . . . Repair Stations . | . . . . . Recycling Units 2 | . 2 . . . Scanalyzers . | . . . . . Garrison Access . | . . . . . Total Hacks 58 | . 8 . 50 . Successful 56 | . 6 . 50 . Failed 2 | . 2 . . . Catastrophic . | . . . . . Database Lockouts . | . . . . . Manual 3 | . . . 3 . Terminals 6 | . 6 . . . Fabricators . | . . . . . Repair Stations . | . . . . . Recycling Units 2 | . 2 . . . Scanalyzers . | . . . . . Garrison Access . | . . . . . Terminal Hacks 54 | . 4 . 50 . Record 50 | . 1 . 49 . Prototype ID Bank 1 | . 1 . . . Maintenance Status 1 | . 1 . . . Patrol Status 1 | . 1 . . . EX-Prototype ID Bank 1 | . . . 1 . Fabricator Hacks . | . . . . . Repair Station Hacks . | . . . . . Recycling Unit Hacks 2 | . 2 . . . Report Inventory 2 | . 2 . . . Scanalyzer . | . . . . . Garrison Access Hacks . | . . . . . Unauthorized Hacks . | . . . . . Terminals . | . . . . . Fabricators . | . . . . . Repair Stations . | . . . . . Recycling Units . | . . . . . Scanalyzers . | . . . . . Garrison Access . | . . . . . Data Cores Recovered . | . . . . . Used . | . . . . . Hacking Detections 3 | . 3 . . . Full Trace Events . | . . . . . Feedback Events . | . . . . . Feedback Blocked . | . . . . . Robot Schematics Acquired . | . . . . . Robots Built . | . . . . . Authchips . | . . . . . Time . | . . . . . Total Robot Build Rating . | . . . . . Part Schematics Acquired . | . . . . . Parts Built . | . . . . . Authchips . | . . . . . Time . | . . . . . Total Part Build Rating . | . . . . . Parts Repaired . | . . . . . Time . | . . . . . Parts Recycled . | . . . . . Recycled Matter . | . . . . . Retrieved Matter . | . . . . . Retrieved Components . | . . . . . Parts Scanalyzed . | . . . . . Part Schematics Acquired . | . . . . . Parts Damaged . | . . . . . Bothacking | -11 -10 -10 -10 -9 ------------ Run | Scr Mat Min Exi Min Used RIF Installer . | . . . . . Robots Hacked . | . . . . . Non-combat . | . . . . . Combat . | . . . . . Robot Hacks Applied . | . . . . . Relay Couplers Released . | . . . . . Fabnet Peak Effective % . | . . . . . Robots Rewired . | . . . . . Allies Hacked . | . . . . . Hacks Repelled . | . . . . . Allies | -11 -10 -10 -10 -9 -------- Run | Scr Mat Min Exi Min Total Allies . | . . . . . Largest Group . | . . . . . Highest-Rated Group . | . . . . . Highest-Rated Ally . | . . . . . Total Orders . | . . . . . Ally Attacks . | . . . . . Total Damage . | . . . . . Kills . | . . . . . Allies Corrupted . | . . . . . Allies Melted . | . . . . . Intel | -11 -10 -10 -10 -9 ------- Run | Scr Mat Min Exi Min Robot Analysis Total . | . . . . . Derelict Logs Recovered 1 | . . 1 . . Drone Launches . | . . . . . Drone Recoveries . | . . . . . Exploration | -11 -10 -10 -10 -9 ------------- Run | Scr Mat Min Exi Min Turns Passed 2107 | 116 533 659 737 62 Spaces Moved 2189 | 66 495 691 891 46 Core 4 | 4 . . . . Treads . | . . . . . Legs 336 | . . 108 182 46 Wheels 1795 | 62 441 583 709 . Hover 54 | . 54 . . . Flight . | . . . . . Fastest Speed 50 | 50 56 80 80 90 Average Speed 82 | 84 77 86 82 90 Slowest Speed 190 | 100 80 190 90 90 Overloaded Moves . | . . . . . Propulsion Burnouts . | . . . . . Robots Hopped . | . . . . . Cave-ins Triggered . | . . . . . Exploration Rate (%) 55 | 3 65 99 94 14 Regions Visited 4 Branch Regions 3 Pre-discovered Areas 1 | . . . 1 . Known Exits Taken 3 | . 1 1 1 . Unknown Exits Taken 1 | 1 . . . . Scrap Searched 4 | . . 3 . 1 Spaces Dug . | . . . . . Terrain Destroyed 78 | . . 55 . 23 Melee . | . . . . . Projectile . | . . . . . AOE 78 | . . 55 . 23 Terrain Rammed . | . . . . . Walls Destroyed . | . . . . . Machines Disabled . | . . . . . Actions | -11 -10 -10 -10 -9 --------- Run | Scr Mat Min Exi Min Total 2363 | 106 587 718 897 55 Wait 3 | . 3 . . . Move 2185 | 65 494 690 890 46 Hop . | . . . . . Pick Up 29 | 11 17 . 1 . Fast Attach 12 | . 4 5 2 1 Attach 21 | 10 10 . 1 . Detach 1 | 1 . . . . Swap 4 | . 4 . . . Drop 27 | 3 15 5 3 1 Fire 81 | 16 40 18 . 7 Melee . | . . . . . Ram . | . . . . . Kick . | . . . . . Crush . | . . . . . Escape Stasis . | . . . . . Rewire . | . . . . . Trap . | . . . . . Miscellaneous . | . . . . . Route ------- -11/Scrapyard -10/Materials (discovered 3 exits: *Mat x2 / *Min) -10/Mines (discovered 3 exits: *Mat x2 / *Exi) -10/Exiles (discovered 2 exits: *Min x2) -9/Mines History --------- Turn | Location | Event 7 | -11/Scrapyard | Discovered new exit (range 15) 117 | -11/Scrapyard | Entered Materials 390 | -10/Materials | Discovered new exit (range 15) 409 | -10/Materials | Identified exit to Materials 474 | -10/Materials | Discovered exit to Materials (range 8) 484 | -10/Materials | Build established: Scavenger-Mutant 486 | -10/Materials | Discovered new exit (range 14) 503 | -10/Materials | Core integrity fell below 50% 576 | -10/Materials | Identified exit to Mines 650 | -10/Materials | Entered Mines 751 | -10/Mines | YI-UF0 nonchalantly dropped a Grenade Launcher on the ground 1054 | -10/Mines | Discovered exit to Materials (range 15) 1097 | -10/Mines | Learned Materials security intel 1233 | -10/Mines | Core integrity fell below 20% 1245 | -10/Mines | Deemed a non-threat by the Exiles lab entrance 1245 | -10/Mines | Discovered new exit (range 5) 1247 | -10/Mines | Identified exit to Exiles 1261 | -10/Mines | Discovered exit to Materials (range 13) 1309 | -10/Mines | Entered Exiles 1332 | -10/Exiles | Discovered new exit (range 14) 1342 | -10/Exiles | Identified exit to Mines 1358 | -10/Exiles | Met 8R-AWN 1381 | -10/Exiles | Met EX-HEX 1433 | -10/Exiles | Met EX-DEC 1439 | -10/Exiles | Learned location of Zion (-7) 1479 | -10/Exiles | Discovered exit to Mines (range 14) 1560 | -10/Exiles | Visited The Gauntlet 1715 | -10/Exiles | Met EX-BIN 1798 | -10/Exiles | Aligned with FarCom system 1799 | -10/Exiles | Given EX-Vault access code 1871 | -10/Exiles | Opened EX-Vault 1880 | -10/Exiles | Found Potential Leg 1883 | -10/Exiles | Found Potential Leg 1905 | -10/Exiles | Warned to stay clear of 0b10 Research branches 2046 | -10/Exiles | Left Exiles lab with Potential Leg 2046 | -10/Exiles | Entered Mines 2047 | -9/Mines | Assembled infested the area 2066 | -9/Mines | Met a Derelict bent on vengeance 2108 | -9/Mines | Destroyed by as-42611 with Assembled Heavy Rifle Last Messages --------------- squad. S-10 Pest destroyed. Acquired 8 matter. Acquired 3 matter. K-01 Serf cleans the Laser Drill. K-01 Serf collects debris. Searching scrap... Found Lgt. Assault Rifle. Found 17 Matter. Acquired 17 matter. K-01 Serf collects debris. K-01 Serf cleans the Laser Drill. K-01 Serf collects debris. K-01 Serf cleans the Laser Drill. as-51536 destroyed. Destroyed Asb. Hover Unit. as-99736 destroyed. Dropped Grenade Launcher. Acquired Lgt. Assault Rifle. K-01 Serf collects debris. Map ----- +----------------------------------------------------+ | | | | | | | | | | | | | ????????????????????????????????? | | ????????????????????????????????? | | ????????????????????????????????? | | ????????????????????????????????? | | ????????????????????????????????? | | ????????????????????????????????? | | ????????????????????????????????? | | ???????????????############?????? | | ???????????????# #?????? | | ???????????????# """ """ #?????? | | ???????????????# """ """ #?????? | | ???????????????# """ """ #?????? | | ?????#?????????# #?????? | | ?????# ????????# """ """ ######? | | ????## ???????# """ """ #? | | ##### ######?# """ """ #? | | #?# ###? #? | | ? ### ### #? | | ????# ########## #? | | ?????# == ###??????#k@ #? | | ??????# *[ ##?????# ######? | | ??????# ##????# #?????? | | ??????## ###### a##????? | | ???????### ##???? | | ?????????#### ####### #???? | | ????????????######?????# #??? | | ???????????????????????# #??? | | ???????????????????????# ##??? | | ??????????????????????? a #???? | | ??????????????????????? #???? | | ?????????????????????? #???? | | ?????????????????????? $#???? | | ?????????????????????? ???? | | ?????????????????????## ???? | | ?????????????????????? ???? | | ?????????????????????? ??? | | ?????????????????????? #??? | | ??????????????????????# ##??? | | ??????????????????????? ##???? | | ????????????????????????????????? | | ????????????????????????????????? | | ????????????????????????????????? | | ????????????????????????????????? | | ????????????????????????????????? | +----------------------------------------------------+ Best States ------------- Heat Dissipation 35 Energy Generation 12 Energy Capacity 265 Matter Stores 300 Matter Capacity 300 Sight Range 18 Robot Scan Range 14 Terrain Scan Density 10 Resistance: KI 20 Resistance: TH 20 Resistance: EX 20 Resistance: EM 20 Resistance: I 20 Resistance: S 20 Resistance: P 20 Evasion (%) 57 Offensive Hacking 10 Item Schematics ----------------- None Robot Schematics ------------------ None Fabricated ------------ Nothing Alien Tech Used ----------------- None Achievements -------------- Librarian Tourist Use The Force Challenges ------------ None Game ------ Seed HardlightTransportModule Manual? 0 Play Time 00:48:41 Cumulative 19.5 hours Start 2022.08.01 @ 16:37:37 End 2022.08.01 @ 20:39:36 Sessions 1 Manual Loads 0 Difficulty Adventurer Special Mode None Game No. 31 Rogue 29 Adventurer 2 Explorer 0 Win Type - Total 0 Types 0/0/0/0/0/0/0/0/0 Lore% 19 Gallery% 22 Achievement% 8 Wizard Run 0 Options --------- ASCII 0 Keyboard 0 Movement Mouse Keybinds 0 Fullscreen 1 Font 20/SmallcapsGlow Map View 66x50 Tactical HUD 0 Map Filters NONE Filters NONE Steam 1 RUN: 99e301cb-d1cf-40a0-b58b-cad6e6ce1078